Cogmind - Beta 16 @@@ ROGUE MODE // 2026.01.03 @ 14:53:22 Player: pickelover66 Result: Destroyed by Autobeam Turret with Autobeam Performance ------------- Evolutions (0) 0 Regions Visited (3) 600 Robots Destroyed (19) 95 Value Destroyed (480) 480 Prototype IDs (2) 40 Alien Tech Used (0) 0 Bonus (0) 0 TOTAL SCORE: 1215 Bonus ------- None Cogmind --------- Core Integrity 0/250 Matter 248/300 Energy 79/100 System Corruption 0% Temperature Cool (32) Movement Walking (120) Location -10/Subcaves Parts ------- > --- POWER (1) -------- (None) > --- PROPULSION (2) --- Aluminum Leg Aluminum Leg > --- UTILITY (2) ------ Disposable Heat Sink Small Storage Unit > --- WEAPON (2) ------- Subdweller Beam Cannon Battle Rifle > --- INVENTORY (8) ---- Aluminum Leg Improved Heat Sink Medium Battery (150) Sensor Array Targeting Computer Light Assault Rifle Blade Trap Blade Trap Peak State ------------ > --- POWER ------------ Makeshift Power Source > --- PROPULSION ------- Aluminum Leg Aluminum Leg > --- UTILITY ---------- Small Storage Unit Sensor Array > --- WEAPON ----------- Subdweller Beam Cannon Battle Rifle > --- INVENTORY -------- Aluminum Leg Improved Heat Sink Medium Battery Targeting Computer Light Armor Plating Light Assault Rifle Blade Trap Blade Trap [Rating: 13] Favorites ----------- Power Light Nuclear Core Engine Ion Engine Power Core Light Nuclear Core Propulsion Aluminum Leg Leg Aluminum Leg Utility Small Storage Unit Device Sensor Array Storage Small Storage Unit Protection Light Armor Plating Weapon Light Assault Rifle Energy Gun EM Pulse Gun Energy Cannon Beam Cannon Ballistic Gun Light Assault Rifle Build | -11 -10 -10 -10 ------- Run | Yrd Mat Min Sub Slots Evolved . | . . . . Power . | . . . . Propulsion . | . . . . Utility . | . . . . Weapon . | . . . . Parts Attached 26 | 7 4 4 11 Power 6 | 1 1 . 4 Engine 5 | 1 . . 4 Core 1 | . 1 . . Reactor . | . . . . Propulsion 5 | 2 . 2 1 Treads . | . . . . Leg 5 | 2 . 2 1 Wheel . | . . . . Hover . | . . . . Flight . | . . . . Utility 6 | 1 2 1 2 Device 3 | . 1 . 2 Storage 1 | 1 . . . Processor . | . . . . Hackware . | . . . . Protection 2 | . 1 1 . Artifact . | . . . . Weapon 9 | 3 1 1 4 Energy Gun 2 | 2 . . . Energy Cannon 3 | . 1 . 2 Ballistic Gun 4 | 1 . 1 2 Ballistic Cannon . | . . . . Launcher . | . . . . Special Weapon . | . . . . Impact Weapon . | . . . . Slashing Weapon . | . . . . Piercing Weapon . | . . . . Special Melee Weapon . | . . . . Unidentified Prototypes . | . . . . Parts Lost 6 | . . 1 5 Power 3 | . . . 3 Propulsion 1 | . . 1 . Utility 1 | . . . 1 Weapon 1 | . . . 1 Highest Loss Streak 2 | . . 1 2 To Critical Strikes . | . . . . Average Backups 6 | 2 7 6 5 Power . | . 1 1 . Propulsion 1 | 1 1 . 1 Utility 4 | . 4 4 3 Weapon . | . 1 . . Tool/Special . | . . . . Unused Backups 11 | . 6 3 2 Power 1 | . 1 . . Propulsion 5 | . 4 1 . Utility 4 | . . 2 2 Weapon 1 | . 1 . . Tool/Special . | . . . . Average Slot Usage (%) 99 | . 98 99 99 Engine 7 | . 9 . 12 Core 6 | . 4 14 . Leg 27 | . 28 27 28 Device 12 | . 11 12 13 Storage 14 | . 14 14 14 Energy Gun 4 | . . 11 2 Energy Cannon 9 | . 12 3 11 Ballistic Gun 13 | . 14 13 14 Peak Build Rating 13 | 6 9 10 13 Average Rating 9 | 4 7 9 11 On Entrance 6 | . 6 9 10 Avg Prop Armor Cover (%) . | . . . . Naked Turns . | . . . . Heaviest Build 21 | 13 17 18 21 Greatest Support 20 | 20 20 20 20 Greatest Overweight (x) 1 | 1 . . 1 Average Overweight (x) . | . . . . Largest Inventory Capacity 8 | 8 8 8 8 Average Capacity 7 | 6 8 8 8 Most Carried 8 | 6 8 8 8 Average Carried 7 | 2 7 7 7 Final Capacity 8 | 8 8 8 8 Final Carried 8 | 6 8 8 8 Class Distribution -------------------- 93% | Mutant 6% | Scavenger-Mutant Dominant Class ---------------- Mutant | -10/Materials Mutant | -10/Mines Mutant | -10/Subcaves Resources | -11 -10 -10 -10 ----------- Run | Yrd Mat Min Sub Matter Collected 565 | 212 123 94 136 Remotely . | . . . . Salvage Created 556 | . 165 190 201 Parts 41 | . 13 11 17 Haulers Intercepted . | . . . . Recyclers Shooed 2 | . 2 . . Parts Field Recycled . | . . . . Retrieved Matter . | . . . . Parts Self-Destructed 9 | . . . 9 Prevented . | . . . . Parts Restored . | . . . . Kills | -11 -10 -10 -10 ------- Run | Yrd Mat Min Sub Combat Hostiles Destroyed 17 | . 6 4 7 Guns 10 | . 4 3 3 Cannons 5 | . 2 1 2 AOE 2 | . . . 2 Classes Destroyed 5 | . 3 1 1 Worker 1 | . . 1 . Watcher 1 | . 1 . . Swarmer 8 | . 4 . 4 Grunt 6 | . 2 4 . Subdweller 3 | . . . 3 Best Kill Streak 4 | . 3 2 4 Combat Bots Only 4 | . 3 2 4 Max Kills in Single Turn 3 | . 1 1 3 Gunslinging . | . . . . Exploded 2 | . . . 2 Melee . | . . . . Uniques/NPCs Destroyed . | . . . . Combat | -11 -10 -10 -10 -------- Run | Yrd Mat Min Sub Hostile Shots Fired 147 | . 32 27 88 Missed 46 | . 10 1 35 Hits 101 | . 22 26 53 Projectile 101 | . 22 26 53 Critical Strikes 3 | . . 1 2 Damage Taken 1237 | . 228 342 667 Core 258 | . 19 39 200 Absorbed by Shields . | . . . . Regen/Repaired (Parts) 41 | . 41 . . Core Remaining (%) 100 | 100 . . . Volleys Fired 56 | . 23 13 20 Largest 2 | . 2 2 2 Hottest 105 | . 80 100 105 Shots Fired 104 | . 42 22 40 Gun 71 | . 25 15 31 Cannon 33 | . 17 7 9 Launcher . | . . . . Special . | . . . . Kinetic 57 | . 23 8 26 Thermal 33 | . 17 7 9 Explosive . | . . . . Electromagnetic 14 | . 2 7 5 Robot Hit Streak 15 | . 8 13 15 Robot Miss Streak 5 | . 5 2 3 Penetration Max . | . . . . Secondary Targets 1 | . . . 1 Max Gunslinging Chain 1 | . . . 1 Shots Hit Robots 69 | . 23 17 29 Core Hits 38 | . 13 11 14 Critical Kills . | . . . . Critical Parts Destroyed . | . . . . Critical Strikes . | . . . . Melee Attacks . | . . . . Impact . | . . . . Slashing . | . . . . Piercing . | . . . . Sneak Attacks . | . . . . Combat Hostiles . | . . . . Follow-up Attacks . | . . . . Damage Inflicted 1020 | 11 292 242 475 Guns 489 | . 137 138 214 Cannons 404 | . 142 70 192 Explosions 67 | . . . 67 Melee . | . . . . Ramming 60 | 11 13 34 2 Kinetic 357 | . 115 60 182 Thermal 471 | . 142 70 259 Explosive . | . . . . Electromagnetic 132 | . 22 78 32 Impact . | . . . . Slashing . | . . . . Piercing . | . . . . Highest Corruption . | . . . . Average Corruption . | . . . . Corruption Purged . | . . . . Corruption Blocked . | . . . . Overload Shots . | . . . . Overflow Damage . | . . . . Projectiles . | . . . . Explosions . | . . . . Melee . | . . . . Knockbacks . | . . . . Impact . | . . . . Kinetic . | . . . . Secondary . | . . . . Self-Inflicted Damage 30 | . . . 30 Shots 1 | . . . 1 Rammed . | . . . . Targets Rammed 16 | 1 5 9 1 Kicked 16 | 1 5 9 1 Crushed . | . . . . Highest Temperature 411 | . 338 411 386 Average Temperature 152 | . 123 202 124 Received Heat Transfer 837 | . 93 210 534 Effects 9 | . 1 7 1 Shutdowns 3 | . 1 2 . Energy Bleed 2 | . . 1 1 Interference 1 | . . 1 . Damage (major) 3 | . . 3 . Siege Activations . | . . . . Martial Activations . | . . . . Shielding Activations . | . . . . Robots Disrupted . | . . . . Combat Hostiles . | . . . . Robots Corrupted . | . . . . Combat Hostiles . | . . . . Parts Fried . | . . . . Impact Corruptions . | . . . . Robots Melted . | . . . . Combat Hostiles . | . . . . Parts Melted . | . . . . Heat Transferred 803 | . 296 148 359 Parts Sabotaged . | . . . . Parts Stolen . | . . . . Parts Stripped . | . . . . Power Chain Reactions 1 | . . . 1 Alert | -11 -10 -10 -10 ------- Run | Yrd Mat Min Sub Maximum Alert Level . | . . . . Low Security (%) 100 | 100 100 100 . Level 1 . | . . . . Level 2 . | . . . . Level 3 . | . . . . Level 4 . | . . . . Level 5 . | . . . . High Security . | . . . . Max Security . | . . . . Peak Influence 100 | . 100 60 . Initial . | . . . . Average 19 | . 31 10 . Influence Increases 512 | . 227 145 140 Destroy 0b10 Robot/C 280 | . 120 80 80 Destroy 0b10 Robot/NC 10 | . 5 5 . Destroy Leader 42 | . 22 20 . Trap Triggered on 0b10 10 | . . 10 . Successful Hack 20 | . 20 . . Disable Machine 30 | . . 30 . Lose Combat Pursuer 120 | . 60 . 60 Influence Decreases 492 | . 227 145 120 Time Decay 452 | . 227 135 90 Lost Part 40 | . . 10 30 Squads Dispatched . | . . . . Investigation . | . . . . Extermination . | . . . . Reinforcement . | . . . . Assault . | . . . . Garrison . | . . . . Intercept . | . . . . Searches Triggered . | . . . . Construction Impeded . | . . . . Haulers Reinforced . | . . . . Active Scanning Responses . | . . . . Cargo Convoy Interrupts . | . . . . Stealth | -11 -10 -10 -10 --------- Run | Yrd Mat Min Sub Distress Signals 1 | . 1 . . Communications Jammed . | . . . . Distress Signals . | . . . . Times Spotted 32 | . 14 4 14 Peak Tracking Total 6 | . 4 2 6 Tactical Retreats 4 | . 2 . 2 Traps | -11 -10 -10 -10 ------- Run | Yrd Mat Min Sub Traps Triggered . | . . . . Indirectly . | . . . . Trap Hack Attempts . | . . . . Triggered . | . . . . Disarmed . | . . . . Reprogrammed . | . . . . Reused 1 | . . 1 . Traps Extracted . | . . . . Installed 1 | . . 1 . Triggered 1 | . . 1 . Most Traps Carried 2 | . . 2 2 Machines | -11 -10 -10 -10 ---------- Run | Yrd Mat Min Sub Machines Disabled 2 | . . 2 . Max in Single Turn 2 | . . 2 . Machines Repaired . | . . . . Machines Dismantled . | . . . . Machines Sabotaged . | . . . . Overloaded Fab Kills . | . . . . Hacking | -11 -10 -10 -10 --------- Run | Yrd Mat Min Sub Machines Accessed 8 | . 8 . . Terminals 5 | . 5 . . Fabricators . | . . . . Repair Stations 1 | . 1 . . Recycling Units 2 | . 2 . . Scanalyzers . | . . . . Garrison Access . | . . . . Total Hacks 19 | . 19 . . Successful 11 | . 11 . . Failed 8 | . 8 . . Catastrophic . | . . . . Database Lockouts . | . . . . Manual . | . . . . Terminals 11 | . 11 . . Fabricators . | . . . . Repair Stations 3 | . 3 . . Recycling Units 5 | . 5 . . Scanalyzers . | . . . . Garrison Access . | . . . . Terminal Hacks 5 | . 5 . . Prototype ID Bank 2 | . 2 . . Alert Level 1 | . 1 . . Transport Status 1 | . 1 . . Zone Layout 1 | . 1 . . Fabricator Hacks . | . . . . Repair Station Hacks 2 | . 2 . . Scan Component 1 | . 1 . . Repair 1 | . 1 . . Recycling Unit Hacks 4 | . 4 . . Process 1 | . 1 . . Report Inventory 2 | . 2 . . Retrieve Matter 1 | . 1 . . Scanalyzer . | . . . . Garrison Access Hacks . | . . . . Unauthorized Hacks . | . . . . Terminals . | . . . . Fabricators . | . . . . Repair Stations . | . . . . Recycling Units . | . . . . Scanalyzers . | . . . . Garrison Access . | . . . . Data Cores Recovered . | . . . . Used . | . . . . Hacking Detections 5 | . 5 . . Full Trace Events . | . . . . Feedback Events . | . . . . Feedback Blocked . | . . . . Robot Schematics Acquired . | . . . . Robots Built . | . . . . Authchips . | . . . . Time . | . . . . Total Robot Build Rating . | . . . . Part Schematics Acquired . | . . . . Parts Built . | . . . . Authchips . | . . . . Time . | . . . . Total Part Build Rating . | . . . . Part Studies Acquired . | . . . . Parts Repaired 1 | . 1 . . Time 26 | . 26 . . Parts Recycled . | . . . . Recycled Matter 117 | . 117 . . Retrieved Matter 117 | . 117 . . Retrieved Components . | . . . . Parts Scanalyzed . | . . . . Part Schematics Acquired . | . . . . Parts Damaged . | . . . . Bothacking | -11 -10 -10 -10 ------------ Run | Yrd Mat Min Sub Used RIF Installer . | . . . . Robots Hacked . | . . . . Non-combat . | . . . . Combat . | . . . . Robot Hacks Applied . | . . . . Relay Couplers Released . | . . . . Fabnet Peak Effective % . | . . . . Robots Rewired . | . . . . Allies Hacked . | . . . . Hacks Repelled . | . . . . Allies | -11 -10 -10 -10 -------- Run | Yrd Mat Min Sub Total Allies . | . . . . Largest Group . | . . . . Highest-Rated Group . | . . . . Highest-Rated Ally . | . . . . Total Orders . | . . . . Ally Attacks . | . . . . Total Damage . | . . . . Kills . | . . . . Allies Corrupted . | . . . . Allies Melted . | . . . . Intel | -11 -10 -10 -10 ------- Run | Yrd Mat Min Sub Active Infowar (turns) 2122 | . 668 708 746 Sensors 2122 | . 668 708 746 Robot Analysis Total . | . . . . Derelict Logs Recovered 1 | . . 1 . Drone Launches . | . . . . Drone Recoveries . | . . . . Exploration | -11 -10 -10 -10 ------------- Run | Yrd Mat Min Sub Turns Passed 2500 | 79 782 766 873 Spaces Moved 1648 | 53 528 579 488 Core 4 | 4 . . . Treads . | . . . . Legs 1644 | 49 528 579 488 Wheels . | . . . . Hover . | . . . . Flight . | . . . . Fastest Speed 50 | 50 120 120 120 Average Speed 131 | 116 120 120 158 Slowest Speed 190 | 120 120 120 190 Overloaded Moves . | . . . . Propulsion Burnouts . | . . . . Robots Hopped . | . . . . Potential Cave-ins . | . . . . Cave-ins Triggered . | . . . . Exploration Rate (%) 52 | 4 92 93 22 Regions Visited 3 Branch Regions 2 Pre-discovered Areas . | . . . . Known Exits Taken . | . . . . Unknown Exits Taken 3 | 1 1 1 . Scrap Searched 1 | . . 1 . Spaces Dug . | . . . . Terrain Destroyed 5 | . . . 5 Melee . | . . . . Projectile . | . . . . AOE 5 | . . . 5 Terrain Rammed . | . . . . Walls Destroyed . | . . . . Machines Disabled . | . . . . Actions | -11 -10 -10 -10 --------- Run | Yrd Mat Min Sub Total 1887 | 67 640 630 550 Wait 81 | . 58 8 15 Move 1645 | 52 527 578 488 Hop . | . . . . Pick Up 26 | 7 10 6 3 Fast Attach 10 | 5 2 . 3 Attach 5 | 1 . 1 3 Detach . | . . . . Swap 25 | 1 6 7 11 Drop 22 | . 9 7 6 Fire 56 | . 23 13 20 Melee . | . . . . Ram . | . . . . Kick 16 | 1 5 9 1 Crush . | . . . . Escape Stasis . | . . . . Rewire . | . . . . Trap 1 | . . 1 . Miscellaneous . | . . . . Route ------- -11/Scrapyard -10/Materials (discovered 3 exits: [*Mat x2] / [*Min]) -10/Mines (discovered 3 exits: [*Mat x2] / [*Sub]) -10/Subcaves (discovered 1 exit: [*Rec]) History --------- Turn | Location | Event 18 | -11/Scrapyard | Discovered new exit (range 15) 80 | -11/Scrapyard | Entered Materials 300 | -10/Materials | Build established: Mutant 489 | -10/Materials | Discovered new exit (range 16) 672 | -10/Materials | Discovered new exit (range 11) 738 | -10/Materials | Repaired Beam Cannon 769 | -10/Materials | Discovered new exit (range 6) 862 | -10/Materials | Entered Mines 975 | -10/Mines | Discovered new exit (range 5) 1039 | -10/Mines | Found a hidden stash of uninstalled traps 1139 | -10/Mines | Discovered new exit (range 10) 1548 | -10/Mines | Learned location of 1 exit from Materials 1621 | -10/Mines | Discovered new exit (range 6) 1628 | -10/Mines | Entered Subcaves 1651 | -10/Subcaves | Discovered new exit (range 14) 1933 | -10/Subcaves | Core integrity fell below 50% 1996 | -10/Subcaves | Shifting Twisted Machinery released Sub. Laser 2020 | -10/Subcaves | Shifting Twisted Machinery released Battle Rifle 2486 | -10/Subcaves | Core integrity fell below 20% 2501 | -10/Subcaves | Destroyed by Autobeam Turret with Autobeam Last Messages --------------- Battle Rifle falls loose from the Twisted Machinery. 02136_ Subatomizers dissect the Sub. Optics. 02158_ Subatomizers dissect the Sub. Optics, destroying it. 02171_ Dropped Sub. Beam Cannon. 02180_ Kicked 7C-5SF(O). 02243_ Sub. Power Source shoots sparks and powers down. 02260_ Subatomizers dissect the Sub. Power Source. 02264_ Dropped Broken Sub. Power Source. 02264_ Acquired Sub. Power Source. 02429_ Subatomizers dissect the Sub. Monowheel. 02447_ Sub. Power Source shoots sparks and powers down. 02467_ Dropped Broken Sub. Power Source. 02486_ Acquired Lgt. Ion Engine. 02499_ Lgt. Ion Engine destroyed. Map ----- +----------------------------------------------------+ | ??????????????????????????????????????????????? ?? | | ?????????????????????????????????????###?????? | | ?????????????????????????????????????# ##???? | | ????????????????????????????????????? #??? | | ????????????????????????????????????? ##?? | | ????????????????????????????????????? #? | | ?????????????????????????????????????# ## # | | ????????????????????????????????????## # | | ?????????????????????????????????#### #? | | ?????????????????????????????????# #? | | ?????????????????????????????????# ### #? | | ?????????????????????????????????## #????? #? | | ??????????????????????????????????# #???????? | | ????????????????????###??####?????#### #???????? | | ???????????????????## ## ##??????# #???????? | | ?????????????????? #???#### #???????? | | ????????????????????? ##?## ## #???????? | | ????????????????????????# ### #???????? | | ???????????????????????????# ##???????? | | ???????????????????????????## # #???????? | | ????????????????????????????# ## ###???????? | | ??????????????????????????### ## ######???? | | ????????????#" ??????????##; ## ##??? | | ????????????#" ###???#;[ ##### #??? | | ?????????????""t ## ;#???## ## #?## | | ???????????#< %@ ;#????####* ### | | ?????????????""t % & ;##??????## #??? | | ????????????#" ## ###???????# #???? | | ????????????#" ????# #???######## ##### | | ????????????????????# #??## ## | | ???????????????????# ??# | | ???????????????????# ??# ! && | | ???????????????????# ##??# = ] ## | | ???????????????????######????## &## ##? | | ??????????????????###?????????#" ### #?? | | ??????????????????# ##????????######?## #?? | | ??????????????????# ##???????????????## ### | | ?????????????????## #???#????????????# | | ????????????????## #### #???????????# * | | ????????????????# ??###???????## | | ????????????????# # ##?# ########?# | | ????????????##### #?# #?# ## # ### # | | ????????????# #### ### [ # ### | | ????????????## ### " # # ### | | ?????????????# " " ##### #?## | | ????????????## [" " #???# # ### # | | ???????????## ### # " " #???## ###### | | ???????????# ###### " "" #???# #?# | | ???????????#### ##??# "" ""#???# # ### | | ???? ??????### ["#??##" "" ##???#### # # | +----------------------------------------------------+ Best States ------------- Heat Dissipation 39 Coolant Potential 50 Energy Generation 15 Energy Capacity 250 Matter Stores 300 Matter Capacity 300 Sight Range 16 Robot Scan Range 14 Terrain Scan Density 10 Armor Coverage 150 Evasion (%) 55 Item Schematics ----------------- None Robot Schematics ------------------ None Fabricated ------------ Nothing Repaired ---------- Beam Cannon | 59% | -10/Materials Studied --------- None Alien Tech Used ----------------- None Achievements -------------- There's More Where That Came From Challenges ------------ None Game ------ Seed VoltaicScanDriveblaster Manual? 0 Play Time 00:35:19 Cumulative 23.4 hours Start 2026.01.03 @ 14:16:01 End 2026.01.03 @ 14:53:22 Sessions 1 Manual Loads 0 Difficulty Rogue Special Mode None Game No. 28 Rogue 28 Adventurer 0 Explorer 0 Win Type - Total 0 Types 0/0/0/0/0/0/0/0/0/0 Lore% 8 Gallery% 17 Achievement% 10 Wizard Run 0 Options --------- Layout 1 ASCII 0 Keyboard 1 Movement Numpad Keybinds 0 Fullscreen 1 Font 24/Smallcaps Map View 50x35 Zoom Use 0% Tactical HUD 1 Map Filters NONE Filters NONE Steam 1 RUN: a6c715e0-d709-4678-934f-6f161460b9e7